Cogmind - Beta 13 @@@ ROGUE MODE // 2024.05.06 @ 12:18:24 Player: Mr.Morel Result: Self-destructed Performance ------------- Evolutions (3) 1500 Regions Visited (4) 800 Robots Destroyed (63) 315 Value Destroyed (1757) 1757 Prototype IDs (2) 40 Alien Tech Used (0) 0 Bonus (0) 0 TOTAL SCORE: 4412 Bonus ------- None Cogmind --------- Core Integrity 386/700 Matter 300/300 Energy 100/100 System Corruption 0% Temperature Cool (12) Movement Core (300) Ox5 Location -7/Factory Parts ------- > --- POWER (2) -------- (None) > --- PROPULSION (4) --- (None) > --- UTILITY (4) ------ Medium Storage Unit > --- WEAPON (3) ------- Power Maul Power Maul > --- INVENTORY (10) --- Improved Heat Sink Reaction Control System Reaction Control System Improved Light Armor Plating Peak State ------------ > --- POWER ------------ Light Nuclear Core Light Nuclear Core > --- PROPULSION ------- Improved Aluminum Leg Carbon-fiber Leg Carbon-fiber Leg Carbon-fiber Leg > --- UTILITY ---------- Cryofiber Web Improved Heat Sink Medium Storage Unit Improved Light Armor Plating > --- WEAPON ----------- Arc Projector Arc Projector Power Maul > --- INVENTORY -------- Improved Ion Engine Improved Heat Sink Reaction Control System Reaction Control System Improved Light Armor Plating Pulse Rifle Power Maul Power Maul [Rating: 41] Favorites ----------- Power Light Nuclear Core Engine Ion Engine Power Core Light Nuclear Core Propulsion Aluminum Leg Leg Aluminum Leg Hover Unit Hover Unit Utility Small Storage Unit Device ECM Suite Storage Small Storage Unit Protection Improved Light Armor Plating Weapon Hammer Energy Gun Arc Projector Energy Cannon Ion Cannon Ballistic Gun Improved Assault Rifle Launcher Rocket Launcher Impact Weapon Hammer Build | -11 -10 -9 -8 -7 ------- Run | Yrd Mat Mat Mat Fac Slots Evolved 6 | . . 2 2 2 Power 1 | . . . 1 . Propulsion 2 | . . 1 1 . Utility 2 | . . . . 2 Weapon 1 | . . 1 . . Parts Attached 63 | 6 5 21 25 6 Power 12 | 1 1 3 5 2 Engine 8 | 1 1 3 2 1 Core 4 | . . . 3 1 Reactor . | . . . . . Propulsion 17 | 2 2 5 8 . Treads . | . . . . . Leg 16 | 2 2 4 8 . Wheel . | . . . . . Hover 1 | . . 1 . . Flight . | . . . . . Utility 12 | 1 1 3 5 2 Device 5 | . 1 1 2 1 Storage 3 | 1 . 1 1 . Processor . | . . . . . Hackware . | . . . . . Protection 4 | . . 1 2 1 Artifact . | . . . . . Weapon 22 | 2 1 10 7 2 Energy Gun 6 | . . 2 3 1 Energy Cannon 1 | . . . 1 . Ballistic Gun 11 | 2 . 8 1 . Ballistic Cannon . | . . . . . Launcher 1 | . . . 1 . Special Weapon . | . . . . . Impact Weapon 3 | . 1 . 1 1 Slashing Weapon . | . . . . . Piercing Weapon . | . . . . . Special Melee Weapon . | . . . . . Unidentified Prototypes 2 | . . 1 1 . Corrupted Parts 1 | . . 1 . . System Corruption 1 | . . 1 . . Parts Lost 27 | . 2 9 4 12 Power 6 | . 1 2 1 2 Propulsion 10 | . 1 3 2 4 Utility 5 | . . 1 1 3 Weapon 6 | . . 3 . 3 Highest Loss Streak 11 | . 2 5 2 11 To Critical Strikes . | . . . . . Average Slot Usage (%) 93 | . 95 92 95 93 Engine 8 | . 12 10 3 5 Core 4 | . . . 13 7 Leg 30 | . 27 30 34 27 Device 7 | . 11 4 4 14 Storage 10 | . 14 11 9 7 Protection 2 | . . 2 2 6 Energy Gun 5 | . . 2 11 12 Ballistic Gun 13 | . 14 22 8 . Impact Weapon 8 | . 13 8 4 7 Naked Turns . | . . . . . Heaviest Build 37 | 13 16 22 35 37 Greatest Support 60 | 20 20 33 60 58 Greatest Overweight (x) 6 | . 1 1 . 6 Average Overweight (x) . | . . . . . Largest Inventory Capacity 10 | 8 8 8 10 10 Average Capacity 8 | 6 8 8 9 10 Most Carried 10 | 5 6 8 10 9 Average Carried 5 | 1 4 4 8 6 Final Capacity 10 | 8 8 8 10 10 Final Carried 10 | . 3 7 10 4 Class Distribution -------------------- 67% | Mutant 15% | Scavenger-Tank 9% | Scavenger-Mutant 3% | Tank Dominant Class ---------------- Mutant | -10/Materials Mutant | -9/Materials Scavenger-Mutant | -8/Materials Mutant | -7/Factory Resources | -11 -10 -9 -8 -7 ----------- Run | Yrd Mat Mat Mat Fac Matter Collected 1091 | 213 106 319 408 45 Remotely . | . . . . . Salvage Created 2016 | . 358 854 617 187 Parts 101 | . 13 42 34 12 Haulers Intercepted 4 | . 1 1 2 . Recyclers Shooed . | . . . . . Parts Field Recycled . | . . . . . Retrieved Matter . | . . . . . Parts Self-Destructed . | . . . . . Prevented . | . . . . . Kills | -11 -10 -9 -8 -7 ------- Run | Yrd Mat Mat Mat Fac Combat Hostiles Destroyed 48 | . 11 17 13 7 Melee 17 | . 6 5 1 5 Guns 18 | . . 9 9 . AOE 2 | . . . 2 . Classes Destroyed 12 | . 5 4 2 1 Worker 3 | . . 2 1 . Builder 1 | . 1 . . . Tunneler 1 | . . . 1 . Hauler 4 | . 1 1 2 . Recycler 1 | . . 1 . . Watcher 5 | . 1 3 1 . Swarmer 16 | . 6 3 3 4 Grunt 20 | . 5 8 5 2 Duelist 1 | . . 1 . . Sentry 8 | . . 5 3 . Hunter 2 | . . . 2 . Programmer 1 | . . . . 1 Best Kill Streak 7 | . 3 7 4 3 Combat Bots Only 5 | . 3 5 4 3 Max Kills in Single Turn 2 | . 1 2 2 1 Gunslinging 1 | . . 1 1 . Exploded 1 | . . . 1 . Melee 1 | . 1 1 1 1 Uniques/NPCs Destroyed . | . . . . . Combat | -11 -10 -9 -8 -7 -------- Run | Yrd Mat Mat Mat Fac Hostile Shots Fired 523 | . 99 158 88 178 Missed 151 | . 28 47 24 52 Damage Taken 4340 | . 654 1289 989 1408 Core 799 | . 237 163 85 314 Absorbed by Shields 143 | . . 143 . . Redirected to Shielding 13 | . . . 13 . Core Remaining (%) 62 | 100 5 59 84 . Volleys Fired 57 | . 3 17 31 6 Largest 3 | . 1 3 3 2 Hottest 119 | . 20 86 119 110 Shots Fired 127 | . 3 40 77 7 Gun 117 | . 3 40 67 7 Cannon 5 | . . . 5 . Launcher 5 | . . . 5 . Special . | . . . . . Kinetic 81 | . 3 37 41 . Thermal 18 | . . . 15 3 Explosive 5 | . . . 5 . Electromagnetic 23 | . . 3 16 4 Robot Hit Streak 13 | . 2 8 13 5 Robot Miss Streak 3 | . 1 3 2 2 Penetration Max . | . . . . . Secondary Targets 5 | . . 3 2 . Max Gunslinging Chain 1 | . . 1 1 . Shots Hit Robots 149 | . 25 47 57 20 Core Hits 65 | . 6 21 34 4 Critical Kills 3 | . . 1 1 1 Critical Parts Destroyed 14 | . 3 7 2 2 Critical Strikes 17 | . 3 8 3 3 Smash 17 | . 3 8 3 3 Melee Attacks 96 | . 32 29 9 26 Impact 96 | . 32 29 9 26 Slashing . | . . . . . Piercing . | . . . . . Sneak Attacks 4 | . 2 2 . . Combat Hostiles . | . . . . . Follow-up Attacks . | . . . . . Damage Inflicted 3800 | . 688 1011 1348 753 Guns 1179 | . 28 403 692 56 Cannons 45 | . . . 45 . Explosions 357 | . . . 357 . Melee 2218 | . 660 607 254 697 Ramming 1 | . . 1 . . Kinetic 813 | . 28 376 409 . Thermal 310 | . . . 258 52 Explosive 296 | . . . 296 . Electromagnetic 162 | . . 27 131 4 Impact 2218 | . 660 607 254 697 Slashing . | . . . . . Piercing . | . . . . . Highest Corruption 1 | . . 1 . . Average Corruption 1 | . . 1 . . Corruption Purged . | . . . . . Corruption Blocked . | . . . . . Effects 5 | . . 5 . . Energy Discharges 2 | . . 2 . . Data Loss (minor) 1 | . . 1 . . Data Loss (major) 2 | . . 2 . . Overload Shots . | . . . . . Overflow Damage 586 | . 186 188 82 130 Projectiles 1 | . . . 1 . Explosions . | . . . . . Melee 585 | . 186 188 81 130 Knockbacks 9 | . 3 2 . 4 Impact 9 | . 3 2 . 4 Kinetic . | . . . . . Secondary . | . . . . . Self-Inflicted Damage 22 | . . . 22 . Shots 1 | . . . 1 . Rammed . | . . . . . Targets Rammed 2 | . . 2 . . Kicked 2 | . . 2 . . Crushed . | . . . . . Highest Temperature 313 | . 2 60 313 . Average Temperature 76 | . 2 20 92 . Received Heat Transfer 1177 | . 192 445 378 162 Siege Activations . | . . . . . Robots Corrupted 1 | . . . 1 . Combat Hostiles 1 | . . . 1 . Parts Fried 22 | . 8 11 2 1 Impact Corruptions 33 | . 14 10 2 7 Robots Melted . | . . . . . Combat Hostiles . | . . . . . Parts Melted . | . . . . . Heat Transferred 568 | . . . 457 111 Parts Sabotaged . | . . . . . Parts Stolen . | . . . . . Parts Stripped . | . . . . . Power Chain Reactions . | . . . . . Alert | -11 -10 -9 -8 -7 ------- Run | Yrd Mat Mat Mat Fac Peak Influence 381 | . 264 198 381 169 Initial 83 | . . 68 83 79 Average 135 | . 121 93 210 111 Maximum Alert Level 1 | . 1 . 1 . Low Security (%) 80 | 100 83 100 46 100 Level 1 19 | . 16 . 53 . Level 2 . | . . . . . Level 3 . | . . . . . Level 4 . | . . . . . Level 5 . | . . . . . High Security . | . . . . . Max Security . | . . . . . Squads Dispatched 7 | . 3 1 3 . Investigation 3 | . 2 . 1 . Extermination . | . . . . . Reinforcement 3 | . 1 1 1 . Assault . | . . . . . Garrison 1 | . . . 1 . Intercept . | . . . . . Searches Triggered . | . . . . . Construction Impeded . | . . . . . Haulers Reinforced . | . . . . . Active Scanning Responses . | . . . . . Cargo Convoy Interrupts . | . . . . . Stealth | -11 -10 -9 -8 -7 --------- Run | Yrd Mat Mat Mat Fac Distress Signals 1 | . . 1 . . Communications Jammed . | . . . . . Distress Signals . | . . . . . Times Spotted 80 | . 24 26 19 11 Peak Tracking Total 6 | . 6 6 4 6 Tactical Retreats 6 | . 4 1 1 . Traps | -11 -10 -9 -8 -7 ------- Run | Yrd Mat Mat Mat Fac Traps Triggered 4 | . 1 2 . 1 Indirectly . | . . . . . Trap Hack Attempts . | . . . . . Triggered . | . . . . . Disarmed . | . . . . . Reprogrammed . | . . . . . Reused . | . . . . . Traps Extracted . | . . . . . Installed . | . . . . . Triggered . | . . . . . Machines | -11 -10 -9 -8 -7 ---------- Run | Yrd Mat Mat Mat Fac Machines Disabled 5 | . . . 4 1 Max in Single Turn 2 | . . . 2 1 Garrison Access 1 | . . . 1 . Machines Repaired . | . . . . . Machines Dismantled . | . . . . . Machines Sabotaged . | . . . . . Overloaded Fab Kills . | . . . . . Hacking | -11 -10 -9 -8 -7 --------- Run | Yrd Mat Mat Mat Fac Machines Accessed 16 | . 5 5 4 2 Terminals 14 | . 5 5 3 1 Fabricators 1 | . . . . 1 Repair Stations . | . . . . . Recycling Units . | . . . . . Scanalyzers . | . . . . . Garrison Access 1 | . . . 1 . Total Hacks 43 | . 17 13 8 5 Successful 21 | . 10 8 3 . Failed 21 | . 7 4 5 5 Catastrophic 3 | . 3 . . . Database Lockouts 1 | . . 1 . . Manual . | . . . . . Terminals 39 | . 17 13 6 3 Fabricators 2 | . . . . 2 Repair Stations . | . . . . . Recycling Units . | . . . . . Scanalyzers . | . . . . . Garrison Access 2 | . . . 2 . Terminal Hacks 20 | . 10 8 2 . Record 12 | . 6 5 1 . Emergency Access Points 3 | . 2 . 1 . Hauler Manifests 2 | . 1 1 . . Zone Layout 3 | . 1 2 . . Fabricator Hacks . | . . . . . Repair Station Hacks . | . . . . . Recycling Unit Hacks . | . . . . . Scanalyzer . | . . . . . Garrison Access Hacks 1 | . . . 1 . Seal Access 1 | . . . 1 . Unauthorized Hacks . | . . . . . Terminals . | . . . . . Fabricators . | . . . . . Repair Stations . | . . . . . Recycling Units . | . . . . . Scanalyzers . | . . . . . Garrison Access . | . . . . . Data Cores Recovered . | . . . . . Used . | . . . . . Hacking Detections 11 | . 3 4 2 2 Full Trace Events 4 | . 2 1 1 . Feedback Events . | . . . . . Feedback Blocked . | . . . . . Robot Schematics Acquired . | . . . . . Robots Built . | . . . . . Authchips . | . . . . . Time . | . . . . . Total Robot Build Rating . | . . . . . Part Schematics Acquired . | . . . . . Parts Built . | . . . . . Authchips . | . . . . . Time . | . . . . . Total Part Build Rating . | . . . . . Parts Repaired . | . . . . . Time . | . . . . . Parts Recycled . | . . . . . Recycled Matter . | . . . . . Retrieved Matter . | . . . . . Retrieved Components . | . . . . . Parts Scanalyzed . | . . . . . Part Schematics Acquired . | . . . . . Parts Damaged . | . . . . . Bothacking | -11 -10 -9 -8 -7 ------------ Run | Yrd Mat Mat Mat Fac Used RIF Installer . | . . . . . Robots Hacked . | . . . . . Non-combat . | . . . . . Combat . | . . . . . Robot Hacks Applied . | . . . . . Relay Couplers Released . | . . . . . Fabnet Peak Effective % . | . . . . . Robots Rewired . | . . . . . Allies Hacked . | . . . . . Hacks Repelled . | . . . . . Allies | -11 -10 -9 -8 -7 -------- Run | Yrd Mat Mat Mat Fac Total Allies . | . . . . . Largest Group . | . . . . . Highest-Rated Group . | . . . . . Highest-Rated Ally . | . . . . . Total Orders . | . . . . . Ally Attacks . | . . . . . Total Damage . | . . . . . Kills . | . . . . . Allies Corrupted . | . . . . . Allies Melted . | . . . . . Intel | -11 -10 -9 -8 -7 ------- Run | Yrd Mat Mat Mat Fac Robot Analysis Total . | . . . . . Derelict Logs Recovered . | . . . . . Drone Launches . | . . . . . Drone Recoveries . | . . . . . Exploration | -11 -10 -9 -8 -7 ------------- Run | Yrd Mat Mat Mat Fac Turns Passed 4285 | 39 895 1578 1300 473 Spaces Moved 3025 | 32 646 1134 909 304 Core 19 | 16 . . . 3 Treads . | . . . . . Legs 3006 | 16 646 1134 909 301 Wheels . | . . . . . Hover . | . . . . . Flight . | . . . . . Fastest Speed 50 | 50 120 120 120 120 Average Speed 121 | 85 121 122 120 123 Slowest Speed 350 | 120 190 190 120 350 Overloaded Moves . | . . . . . Propulsion Burnouts . | . . . . . Robots Hopped . | . . . . . Cave-ins Triggered . | . . . . . Exploration Rate (%) 34 | 3 59 44 60 8 Regions Visited 4 Branch Regions . Pre-discovered Areas . | . . . . . Known Exits Taken . | . . . . . Unknown Exits Taken 4 | 1 1 1 1 . Scrap Searched . | . . . . . Spaces Dug . | . . . . . Terrain Destroyed 49 | . . . 49 . Melee . | . . . . . Projectile 1 | . . . 1 . AOE 48 | . . . 48 . Terrain Rammed . | . . . . . Walls Destroyed . | . . . . . Machines Disabled . | . . . . . Actions | -11 -10 -9 -8 -7 --------- Run | Yrd Mat Mat Mat Fac Total 3368 | 43 697 1243 1038 347 Wait 20 | . 2 . 18 . Move 3021 | 31 645 1133 908 304 Hop . | . . . . . Pick Up 69 | 6 8 27 27 1 Fast Attach . | . . . . . Attach 40 | 6 3 16 11 4 Detach 3 | . . 2 1 . Swap 23 | . 2 5 14 2 Drop 36 | . 2 12 19 3 Fire 57 | . 3 17 31 6 Melee 94 | . 32 29 9 24 Ram . | . . . . . Kick 2 | . . 2 . . Crush . | . . . . . Escape Stasis 3 | . . . . 3 Rewire . | . . . . . Trap . | . . . . . Miscellaneous . | . . . . . Route ------- -11/Scrapyard -10/Materials (discovered 2 exits: *Mat / [*Min]) -9/Materials -8/Materials (discovered 2 exits: *Fac x2) -7/Factory History --------- Turn | Location | Event 9 | -11/Scrapyard | Discovered new exit (range 16) 40 | -11/Scrapyard | Entered Materials 131 | -10/Materials | Discovered new exit (range 15) 300 | -10/Materials | Build established: Mutant 692 | -10/Materials | Core integrity fell below 50% 707 | -10/Materials | Core integrity fell below 20% 779 | -10/Materials | Discovered new exit (range 8) 935 | -10/Materials | Entered another Materials area 935 | -9/Materials | Evolved 2 slots: Propulsion x1, Weapon x1 1276 | -9/Materials | Central database locked down 1662 | -9/Materials | Lost 5 parts (1p2n1u1w) 2163 | -9/Materials | Lost 4 parts (1p1n2w) 2347 | -9/Materials | Discovered new exit (range 17) 2460 | -9/Materials | Build established: Scavenger-Tank 2513 | -9/Materials | Entered another Materials area 2513 | -8/Materials | Evolved 2 slots: Power x1, Propulsion x1 2875 | -8/Materials | Garrison activated, responded to threat 2965 | -8/Materials | Discovered new exit (range 9) 3428 | -8/Materials | Build established: Scavenger-Mutant 3495 | -8/Materials | Discovered new exit (range 15) 3813 | -8/Materials | Entered Factory 3813 | -7/Factory | Evolved 2 slots: Utility x2 3835 | -7/Factory | Build established: Mutant 4286 | -7/Factory | Self-destructed Last Messages --------------- Imp. Ion Engine destroyed. S-27 Virus destroyed. Imp. Light Armor Plating destroyed. S-27 Virus suffers critical hit (Smash). Destroyed VTOL Module. Destroyed Lgt. Nuclear Core. S-27 Virus system corrupted by crushing effect. S-27 Virus system terminally corrupted. K-01 Serf collects debris. Carbon-fiber Leg destroyed. Cryofiber Web destroyed. Destroyed Autogun. S-27 Virus system corrupted by crushing effect. S-27 Virus destroyed. Imp. Heat Sink destroyed. Imp. Aluminum Leg destroyed. K-01 Serf collects debris. Pulse Rifle destroyed. K-01 Serf collects debris. Map ----- +----------------------------------------------------+ | ?????????????????????????????# #??????? | | ?????????????????????????????# #??????? | | ?????????????????????????????# #??????? | | ?????????????????????????????+ #??????? | | ?????????????????????????????# #??????? | | ?????????????????????????????# #??????? | | ?????????????????????????????? #??????? | | ????????????????????? ????????? ????????? | | ??????????????????????" ????????? ??????????? | | ?????????????????????"" ###########+############# | | ?????????????????????"" ^ | | ?????????????????????"" | | ????????????????? | | ????????????????? """ | | ?????????????????? ^ """ | | ??????????????????# #### """ """ ########### | | ??????????????????# ????# ^"F" #! | | ??????????????????# ????# ^" """ !# | | ??????????????????# ????# """ """ %+ | | ??????????????????? ???# """ """ !# | | ??????????????????#? ???# # | | ???????????????####+##+#### ! # """ """ " | | ???????????????# %=[# ######## """ """ " | | ????????????????# """" k # #??????# """ """ ? | | ????????????????# """" =#/ #??????#########?? | | ????????????????# """% [!@Y% #???##???????????? | | ????????????????# """" [ *#= #?? ???????????? | | ????????????????# """" # #?? ?????????? | | ????????????????# """" ! # #?""" """????????? | | ????????????????? # #?""" """ ???????? | | ???????????################ # """ """ #???? | | ???????????# ] # # ?????? | | ???????????# # + """ ""?????????? | | ???????????# ! ! # # """ ""?????????? | | ???????????# !# # """ ""?????????? | | ???????????# # #? ?????????? | | ???????????# # #? ?????????? | | ???????????############+### #?? ????????? | | ???????????????????# #??######????????? | | ???????????????????# #????????????????? | | ??????############## #????????????????? | | ??????# # #????????????????? | | ??????# "" "" # #????????????????? | | ??????# "" "" # ###### #????????????????? | | ??????# """ """ # #????# #????????????????? | | ####### ! """ """ # #????# #????????????????? | | # """ """ + #????# #????????????????? | | ! """# # #????# #????????????????? | | R"# # ######/####?????????????? | | """# # # =%* % #?????????????? | +----------------------------------------------------+ Best States ------------- Heat Dissipation 48 Energy Generation 23 Energy Capacity 325 Matter Stores 300 Matter Capacity 300 Sight Range 16 Terrain Scan Density 10 ECM Strength 1 Base Temperature (-) 100 Armor Coverage 150 Power Shielding 33 Evasion (%) 55 Item Schematics ----------------- None Robot Schematics ------------------ None Fabricated ------------ Nothing Alien Tech Used ----------------- None Achievements -------------- Close Call Challenges ------------ None Game ------ Seed WeaponsWeightProcessor Manual? 0 Play Time 00:41:24 Cumulative 9.6 hours Start 2024.04.29 @ 12:19:12 End 2024.05.06 @ 12:18:24 Sessions 3 Manual Loads 0 Difficulty Rogue Special Mode None Game No. 20 Rogue 20 Adventurer 0 Explorer 0 Win Type - Total 0 Types 0/0/0/0/0/0/0/0/0 Lore% 11 Gallery% 16 Achievement% 14 Wizard Run 0 Options --------- Layout 2 ASCII 0 Keyboard 0 Movement Arrows Keybinds 0 Fullscreen 1 Font 24/Cog Map View 50x44 Zoom Use 0% Tactical HUD 0 Map Filters NONE Filters NONE Steam 1 RUN: de4bb650-0731-4b39-9d71-2eeee502358f